Cogmind - Beta 17 @@@ ROGUE MODE // 2026.07.04 @ 19:00:53 Player: mischief_2000 Result: Destroyed by Executioner with Helical Railgun Performance ------------- Evolutions (8) 4000 Regions Visited (18) 3600 Robots Destroyed (199) 995 Value Destroyed (12131) 12131 Prototype IDs (164) 3280 Alien Tech Used (4) 800 Bonus (8245) 8245 TOTAL SCORE: 33051 Bonus ------- High Alert Combat Kills 8201 Registered with UFD 300 Met Optimus in HQ 500 Met Zhirov 300 Met Optimus at Protoforge 1000 Friendly Fire -2056 Cogmind --------- Core Integrity 0/1450 Matter 214/1050 Energy 280/280 System Corruption 18% Temperature Cool (0) Movement Walking (170) Ox1 Location -2/Protoforge Parts ------- > --- POWER (2) -------- Light Quantum Reactor Light Quantum Reactor > --- PROPULSION (6) --- Enhanced Biometal Leg Enhanced Biometal Leg Enhanced Biometal Leg > --- UTILITY (12) ----- Concept Antigrav Storage Unit Concept NT7 Matterbank Experimental Optical Array Concept Projectile Intercept Suite Advanced Target Analyzer Experimental Core Analyzer Experimental Reaction Control System Makeshift Medium Armor Plating Makeshift Heavy Armor Plating Concept RG22 Armor Graphene Brace > --- WEAPON (3) ------- Concept Helical Railcannon Sigix Broadsword > --- INVENTORY (25) --- Biometal Leg Concept Gyrokinetic System Energy Well (350) Improved Trap Scanner Concept Deflector Sword UFD Drillbomb Peak State ------------ > --- POWER ------------ Micro Antimatter Reactor Improved Quantum Reactor > --- PROPULSION ------- Experimental Antigrav System Experimental Antigrav System Gravjet Array Gravjet Array > --- UTILITY ---------- Concept Antigrav Storage Unit Enhanced Optical Array Concept Countertargeting System Concept Networked Targeting System Concept Projectile Intercept Suite Experimental Core Analyzer Experimental Kinecellerator Concept Reaction Jets Centrium Light Armor Plating Centrium Light Armor Plating Concept RG22 Armor Graphene Brace > --- WEAPON ----------- Concept XC Strikerail Concept XC Strikerail Concept Deflector Sword > --- INVENTORY -------- Particle Reactor Experimental Antigrav System Gravjet Array Gravjet Array Concept Gyrokinetic System Concept NT7 Matterbank Improved Trap Scanner Concept Helical Railcannon Concept Helical Railcannon Concept Rapid Grenade Launcher Concept Tiamat Rocket Array Sigix Broadsword UFD Drillbomb [Rating: 267] Favorites ----------- Power Micro Nuclear Core Engine Light Ion Engine Power Core Micro Nuclear Core Reactor Micro Antimatter Reactor Propulsion Impulse Thruster Array Leg Aluminum Leg Wheel Compact Wheel Hover Unit Gravjet Array Flight Unit Impulse Thruster Array Utility A0-MCA's Component Scanner Device ECM Suite Storage Concept Antigrav Storage Unit Processor A0-MCA's Component Scanner Hackware Hacking Suite Protection Improved Propulsion Shielding Artifact Phase Redirector Weapon Improved Datajack Energy Gun Medium Laser Energy Cannon Heavy Ion Cannon Ballistic Gun Concept XC Strikerail Ballistic Cannon Concept Helical Railcannon Launcher Concept Tiamat Rocket Array Special Weapon Mining Laser Impact Weapon Power Maul Slashing Weapon Concept Deflector Sword Piercing Weapon Spear Special Melee Weapon Improved Datajack Build | -11 -10 -10 -8 -6 -6 -6 -5 -5 -5 -4 -4 -4 -4 -3 -3 -2 -2 -2 ------- Run | Yrd Mat Sub Scr Fac Was Fac Fac Was Fac Fac Upp Upp Zhi Pro Res Res Qua Frg Slots Evolved 16 | . . . . 8 . . 2 . . 2 . . . . 2 2 . . Power 1 | . . . . . . . . . . 1 . . . . . . . . Propulsion 4 | . . . . 2 . . . . . . . . . . 2 . . . Utility 10 | . . . . 6 . . 2 . . 1 . . . . . 1 . . Weapon 1 | . . . . . . . . . . . . . . . . 1 . . Parts Attached 144 | 7 1 . 11 17 . 8 3 . . 3 3 1 3 1 5 4 6 71 Power 14 | 1 . . 1 1 . . . . . 1 . . . . 1 . 1 8 Engine 1 | 1 . . . . . . . . . . . . . . . . . . Core 3 | . . . 1 1 . . . . . 1 . . . . . . . . Reactor 10 | . . . . . . . . . . . . . . . 1 . 1 8 Propulsion 35 | 2 . . 4 2 . 3 1 . . . . . 2 . 1 1 . 19 Treads . | . . . . . . . . . . . . . . . . . . . Leg 10 | 2 . . . . . . . . . . . . . . . . . 8 Wheel 2 | . . . 2 . . . . . . . . . . . . . . . Hover 8 | . . . . . . . . . . . . . . . . . . 8 Flight 15 | . . . 2 2 . 3 1 . . . . . 2 . 1 1 . 3 Utility 68 | 2 1 . 2 12 . 4 2 . . 1 1 . 1 1 2 2 3 34 Device 27 | 1 . . . 5 . 2 1 . . . 1 . . . 2 1 2 12 Storage 5 | 1 1 . 1 . . . . . . . . . . . . . . 2 Processor 16 | . . . 1 6 . . . . . . . . . . . . . 9 Hackware 4 | . . . . . . 1 . . . 1 . . 1 . . 1 . . Protection 15 | . . . . 1 . 1 1 . . . . . . 1 . . . 11 Artifact 1 | . . . . . . . . . . . . . . . . . 1 . Weapon 27 | 2 . . 4 2 . 1 . . . 1 2 1 . . 1 1 2 10 Energy Gun 2 | 1 . . 1 . . . . . . . . . . . . . . . Energy Cannon 4 | . . . 2 . . . . . . . . . . . 1 . 1 . Ballistic Gun 4 | 1 . . . . . . . . . . . . . . . . . 3 Ballistic Cannon 2 | . . . . . . . . . . . . . . . . . . 2 Launcher 4 | . . . . . . . . . . . 1 . . . . . . 3 Special Weapon 1 | . . . . 1 . . . . . . . . . . . . . . Impact Weapon 2 | . . . . . . . . . . . . 1 . . . 1 . . Slashing Weapon 2 | . . . . . . . . . . . . . . . . . 1 1 Piercing Weapon 3 | . . . . 1 . . . . . . 1 . . . . . . 1 Special Melee Weapon 3 | . . . 1 . . 1 . . . 1 . . . . . . . . Unidentified Prototypes 5 | . . . . . . . . . . . . . 1 . 1 . 2 1 Parts Lost 42 | . . . . . . 1 . . 1 1 . . . . 1 3 . 35 Power 7 | . . . . . . . . . . 1 . . . . . . . 6 Propulsion 10 | . . . . . . 1 . . . . . . . . . . . 9 Utility 18 | . . . . . . . . . . . . . . . 1 3 . 14 Weapon 7 | . . . . . . . . . 1 . . . . . . . . 6 Highest Loss Streak 8 | . . . . . . 1 . . 1 1 . . . . 1 3 . 8 To Critical Strikes . | . . . . . . . . . . . . . . . . . . . Average Backups 7 | 6 8 9 11 4 4 4 4 5 5 4 5 5 5 5 4 4 4 10 Power . | . 1 1 1 . 1 1 1 1 1 . . . . . . 1 . . Propulsion 1 | 3 4 4 2 . . . . . . . . . . 1 . . 1 2 Utility 2 | . 1 1 2 1 1 1 1 2 2 2 2 2 2 2 2 1 1 2 Weapon 2 | 1 2 2 2 1 2 2 2 2 2 2 2 2 1 1 1 1 2 4 Tool/Special . | . . . . . . . . . . . . . . . . . . . Unused Backups 34 | 1 . . 14 1 . 4 1 . 1 . . . 1 . 1 . . 10 Power 4 | . . . 2 1 . . 1 . . . . . . . . . . . Propulsion 4 | . . . 2 . . . . . . . . . . . 1 . . 1 Utility 12 | . . . 3 . . 2 . . 1 . . . . . . . . 6 Weapon 6 | 1 . . 2 . . 2 . . . . . . 1 . . . . . Tool/Special 8 | . . . 5 . . . . . . . . . . . . . . 3 Average Slot Usage (%) 90 | . 100 100 97 93 100 94 89 88 87 83 84 84 85 89 88 80 83 84 Engine 2 | . 14 14 10 . . . . . . . . . . . . . . . Core 3 | . . . 3 6 6 6 5 5 5 9 5 5 5 5 4 4 4 2 Reactor 1 | . . . . . . . . . . . . . . . 3 4 4 4 Leg 3 | . 28 28 . . . . . . . . . . . . . . . 4 Wheel 3 | . . . 19 . . . . . . . . . . . . . . . Hover 2 | . . . . . . . . . . . . . . . . . . 8 Flight 10 | . . . 7 24 26 20 12 11 11 10 10 10 11 15 19 17 17 3 Device 18 | . 14 14 10 16 20 20 22 23 23 21 21 21 21 21 21 20 22 19 Storage 4 | . 14 14 13 . . . . . . . . . . . . . . 4 Processor 13 | . . . 4 24 26 20 17 17 17 15 15 15 15 15 10 8 8 16 Hackware 3 | . . . . . . 5 5 5 5 9 10 10 10 10 9 12 13 1 Protection 5 | . . . . 5 6 6 11 11 11 10 10 10 10 10 9 7 4 6 Energy Gun 2 | . 14 14 8 . . . . . . . . . . . . . . . Energy Cannon 1 | . . . 8 . . . . . . . . . . . . . 3 . Ballistic Gun 2 | . 14 14 5 1 . . . . . . . . . . . . . 3 Slashing Weapon 1 | . . . . . . . . . . . . . . . . . 1 4 Piercing Weapon 1 | . . . . 4 6 6 5 5 5 5 5 . . . . . . . Special Melee Weapon 2 | . . . 3 6 6 6 5 5 4 . 4 5 5 4 3 . . . Peak Build Rating 267 | 7 7 8 26 62 60 76 86 86 86 97 97 98 98 100 119 112 156 267 Average Rating 102 | 6 7 7 16 54 59 71 84 86 85 90 96 95 95 99 114 109 135 221 On Entrance 71 | . 7 7 8 25 60 60 75 86 86 83 93 97 95 98 100 108 112 156 Avg Prop Armor Cover (%) 6 | . . . 4 . . . . . . . 6 . . . . . . 6 Naked Turns . | . . . . . . . . . . . . . . . . . . . Heaviest Build 122 | 13 18 18 60 17 17 20 25 25 25 31 37 27 27 36 44 35 45 122 Greatest Support 173 | 20 20 20 32 20 20 28 29 29 31 33 33 33 33 30 45 51 53 173 Greatest Overweight (x) 25 | . . . 3 . . 1 . . . . 1 . 1 1 . . . 25 Average Overweight (x) . | . . . . . . . . . . . . . . . . . . . Largest Inventory Capacity 25 | 8 10 10 20 10 5 5 5 5 5 5 5 5 5 5 5 5 5 25 Average Capacity 11 | 7 9 10 16 5 5 5 5 5 5 5 5 5 5 5 5 5 5 21 Most Carried 25 | 7 9 10 20 8 5 5 5 5 5 5 5 5 5 5 5 5 5 25 Average Carried 9 | 6 8 9 11 5 4 4 4 5 5 4 5 5 4 5 4 4 4 15 Final Capacity 25 | 8 10 10 10 5 5 5 5 5 5 5 5 5 5 5 5 5 5 25 Final Carried 15 | 7 9 10 9 5 5 5 5 5 5 5 5 5 5 5 5 5 5 15 Class Distribution -------------------- 27% | Mutant 21% | Ninja 14% | Scavenger-Mutant 10% | Hacker-Ninja 7% | Hacker-Sprinter 7% | Scavenger-Sprinter 4% | Derelict-Sprinter Dominant Class ---------------- Mutant | -10/Materials Mutant | -10/Subcaves Mutant | -8/Scraptown Derelict-Sprinter | -6/Factory Ninja | -6/Waste Ninja | -6/Factory Ninja | -5/Factory Ninja | -5/Waste Ninja | -5/Factory Scientist-Ninja | -4/Factory Hacker-Ninja | -4/Upper Caves Hacker-Ninja | -4/Upper Caves Hacker-Ninja | -4/Zhirov Hacker-Ninja | -3/Proximity Caves Hacker-Ninja | -3/Research Hacker-Sprinter | -2/Research Hacker-Sprinter | -2/Quarantine Scavenger-Mutant | -2/Protoforge Resources | -11 -10 -10 -8 -6 -6 -6 -5 -5 -5 -4 -4 -4 -4 -3 -3 -2 -2 -2 ----------- Run | Yrd Mat Sub Scr Fac Was Fac Fac Was Fac Fac Upp Upp Zhi Pro Res Res Qua Frg Matter Collected 7072 | 252 190 3 120 . . 322 . . 30 20 119 10 . 47 158 76 . 5725 Remotely . | . . . . . . . . . . . . . . . . . . . Salvage Created 9840 | 272 94 . . 145 . 394 49 . 272 . . 184 . . 253 . . 8177 Parts 428 | 28 13 . . 6 . 9 6 . 11 . . 5 . . 15 . . 335 Haulers Intercepted 7 | . 1 . . 1 . 2 . . 2 . . . . . 1 . . . Recyclers Shooed . | . . . . . . . . . . . . . . . . . . . Parts Field Recycled . | . . . . . . . . . . . . . . . . . . . Retrieved Matter . | . . . . . . . . . . . . . . . . . . . Parts Self-Destructed 5 | . . 2 . . . . . . . . 1 2 . . . . . . Prevented . | . . . . . . . . . . . . . . . . . . . Parts Restored 1 | . . . . . . . . . . . . . . . . . . 1 Faulty 1 | . . . . . . . . . . . . . . . . . . 1 Kills | -11 -10 -10 -8 -6 -6 -6 -5 -5 -5 -4 -4 -4 -4 -3 -3 -2 -2 -2 ------- Run | Yrd Mat Sub Scr Fac Was Fac Fac Was Fac Fac Upp Upp Zhi Pro Res Res Qua Frg Combat Hostiles Destroyed 149 | . . . . . . . . . . . . 4 . . 3 . . 142 Melee 8 | . . . . . . . . . . . . . . . . . . 8 Guns 31 | . . . . . . . . . . . . . . . . . . 31 Cannons 34 | . . . . . . . . . . . . . . . . . . 34 AOE 76 | . . . . . . . . . . . . 4 . . 3 . . 69 Classes Destroyed 25 | 3 2 . . 1 . 1 . . . . . 1 . . . . . 17 Worker 2 | 2 . . . . . . . . . . . . . . . . . . Builder 4 | . 2 . . 1 . . . . . . . . . . 1 . . . Tunneler 10 | 9 . . . . . . . . . . . . . . 1 . . . Hauler 7 | . 1 . . 1 . 2 . . 2 . . . . . 1 . . . Recycler 2 | 1 . . . . . 1 . . . . . . . . . . . . Carrier 1 | . . . . . . . . . . . . . . . . . . 1 Mechanic 6 | . . . . . . . . . . . . . . . . . . 6 Operator 4 | . . . . . . 1 1 . 2 . . . . . . . . . Drone 9 | . . . . . . . . . . . . . . . . . . 9 Watcher 8 | . . . . 1 . 1 1 . 2 . . . . . 2 . . 1 Swarmer 26 | . . . . . . . . . . . . 4 . . 3 . . 19 Saboteur 2 | . . . . . . . . . . . . . . . . . . 2 Grunt 25 | . . . . . . . . . . . . . . . . . . 25 Brawler 5 | . . . . . . . . . . . . . . . . . . 5 Duelist 10 | . . . . . . . . . . . . . . . . . . 10 Protector 6 | . . . . . . . . . . . . . . . . . . 6 Researcher 2 | . . . . . . . . . . . . . . . . . . 2 Sentry 10 | . . . . . . . . . . . . . . . . . . 10 Hunter 10 | . . . . . . . . . . . . . . . . . . 10 Programmer 4 | . . . . . . . . . . . . . . . . . . 4 Hotshot 3 | . . . . . . . . . . . . . . . . . . 3 Decapitator 4 | . . . . . . . . . . . . . . . . . . 4 Immortal 2 | . . . . . . . . . . . . . . . . . . 2 Striker 19 | . . . . . . . . . . . . . . . . . . 19 Executioner 14 | . . . . . . . . . . . . . . . . . . 14 Scrapper 1 | . . . . . . . . . . . . . . . . . . 1 Scrapoid 3 | . . . . . . . . . . . . . . . . . . 3 Packrat 2 | . . . . . . . . . . . . 2 . . . . . . Best Kill Streak 17 | 3 2 . . 1 . 1 1 . 2 . . 4 . . 6 . . 17 Combat Bots Only 15 | . . . . . . . . . . . . 4 . . 3 . . 15 Max Kills in Single Turn 10 | 1 1 . . 1 . 1 1 . 1 . . 4 . . 3 . . 10 Gunslinging 1 | . . . . . . . . . . . . . . . . . . 1 Exploded 8 | . . . . . . . . . . . . 4 . . 2 . . 8 Melee 1 | . . . . . . . . . . . . . . . . . . 1 Uniques/NPCs Destroyed . | . . . . . . . . . . . . . . . . . . . Combat | -11 -10 -10 -8 -6 -6 -6 -5 -5 -5 -4 -4 -4 -4 -3 -3 -2 -2 -2 -------- Run | Yrd Mat Sub Scr Fac Was Fac Fac Was Fac Fac Upp Upp Zhi Pro Res Res Qua Frg Hostile Shots Fired 735 | . . . . 27 . 38 2 . 23 16 . . . . 9 30 4 586 Missed 337 | . . . . 16 . 25 2 . 13 12 . . . . 4 12 2 251 Deflected 27 | . . . . . . . . . . . . . . . . . . 27 Hits 398 | . . . . 11 . 13 . . 10 4 . . . . 5 18 2 335 Melee 22 | . . . . . . . . . . . . . . . . . . 22 Projectile 376 | . . . . 11 . 13 . . 10 4 . . . . 5 18 2 313 AOE 4 | . . . . . . . . . . . . . . . . . . 4 Critical Strikes 27 | . . . . . . . . . . . . . . . . . . 27 Actively Blocked 27 | . . . . . . . . . . . . . . . . . . 27 Part Disruptions 1 | . . . . . . . . . . . . . . . . . . 1 Damage Taken 11974 | . . 19 . 90 . 71 . . 221 77 17 . . . 154 376 20 10929 Core 1660 | . . . . 6 . 9 . . 107 . 17 . . . 49 97 . 1375 Absorbed by Shields 20 | . . . . . . 20 . . . . . . . . . . . . Redirected to Shielding 326 | . . . . . . . . . . 11 . . . . 47 47 . 221 Ignored by Resistances 6 | . . . . . . . . . . . . . . . . . . 6 Regen/Repaired (Parts) 1832 | . . . . 22 . 23 . . . . . . . . . . . 1787 Core Remaining (%) 95 | 100 . . 100 . . 98 . . 89 . . . . 98 86 . . . Volleys Fired 315 | 37 17 1 . 10 . . . . . . 3 1 . 1 5 10 21 209 Largest 2 | 2 2 2 . 1 . . . . . . 1 1 . 1 1 1 1 2 Hottest 140 | 70 70 70 . 100 . . . . . . 49 49 . 49 113 113 113 140 Shots Fired 501 | 74 34 2 . 10 . . . . . . 3 1 . 1 5 10 21 340 Gun 292 | 74 34 2 . 9 . . . . . . . . . . . . . 173 Cannon 173 | . . . . . . . . . . . . . . . 2 10 21 140 Launcher 35 | . . . . . . . . . . . 3 1 . 1 3 . . 27 Special 1 | . . . . 1 . . . . . . . . . . . . . . Kinetic 371 | 37 17 1 . 9 . . . . . . . . . . . . . 307 Thermal 91 | 37 17 1 . 1 . . . . . . . . . . 2 10 21 2 Explosive 35 | . . . . . . . . . . . 3 1 . 1 3 . . 27 Electromagnetic 4 | . . . . . . . . . . . . . . . . . . 4 Robot Hit Streak 55 | 10 8 1 . 5 . . . . . . . . . . . . . 55 Robot Miss Streak 6 | 3 3 1 . 1 . . . . . . . . . . . . 1 6 Penetration Max 2 | . . . . . . . . . . . . . . . . . . 2 Secondary Targets 6 | . . . . . . . . . . . . . . . . . . 6 Max Gunslinging Chain 1 | . . . . . . . . . . . . . . . . . . 1 Shots Hit Robots 399 | 44 21 1 . 14 . 15 3 . 14 1 . 2 . . 5 . 1 278 Core Hits 487 | 13 8 . . 4 . 4 2 . 7 . . 5 . . 5 . . 439 Critical Kills 13 | . . . . . . . . . . . . . . . . . . 13 Critical Parts Destroyed 17 | . 1 . . . . . . . . . . . . . 1 . . 15 Critical Strikes 39 | . 1 . . 1 . . . . . . . . . . 1 . . 36 Destroy 35 | . 1 . . . . . . . . . . . . . . . . 34 Smash 1 | . . . . . . . . . . . . . . . 1 . . . Sever 2 | . . . . . . . . . . . . . . . . . . 2 Impale 1 | . . . . 1 . . . . . . . . . . . . . . Melee Attacks 282 | . . . . 40 . 47 22 . 47 6 10 2 . 9 9 17 2 71 Impact 34 | . . . . . . . . . . . . 2 . 7 7 17 1 . Slashing 72 | . . . . . . . . . . . . . . . . . 1 71 Piercing 159 | . . . . 38 . 42 22 . 42 5 10 . . . . . . . Sneak Attacks 25 | . . . . 2 . 8 . . 8 . . 2 . . 3 . . 2 Combat Hostiles . | . . . . . . . . . . . . . . . . . . . Follow-up Attacks 2 | . . . . . . . . . . . . . . . . . . 2 Martial Strikes 6 | . . . . . . . . . . . . . . . . . . 6 Damage Inflicted 41646 | 581 290 14 . 465 . 595 146 . 510 46 . 422 . . 766 . 79 37732 Guns 7399 | 581 290 14 . 86 . . . . . . . . . . . . . 6428 Cannons 8772 | . . . . . . . . . . . . . . . . . . 8772 Explosions 21302 | . . . . . . . . . . . . 247 . . 540 . . 20515 Melee 4173 | . . . . 379 . 595 146 . 510 46 . 175 . . 226 . 79 2017 Ramming . | . . . . . . . . . . . . . . . . . . . Kinetic 15722 | 343 152 14 . 86 . . . . . . . . . . . . . 15127 Thermal 376 | 238 138 . . . . . . . . . . . . . . . . . Explosive 21302 | . . . . . . . . . . . . 247 . . 540 . . 20515 Electromagnetic 73 | . . . . . . . . . . . . . . . . . . 73 Impact 401 | . . . . . . . . . . . . 175 . . 226 . . . Slashing 2096 | . . . . . . . . . . . . . . . . . 79 2017 Piercing 1676 | . . . . 379 . 595 146 . 510 46 . . . . . . . . Highest Corruption 18 | . . . . . . . . . 2 . . . . . . 3 3 18 Average Corruption 9 | . . . . . . . . . 1 . . . . . . 2 3 10 Corruption Purged . | . . . . . . . . . . . . . . . . . . . Corruption Blocked . | . . . . . . . . . . . . . . . . . . . Effects 103 | . . . . . . . . . . . . . . . . . 4 99 Message Errors 25 | . . . . . . . . . . . . . . . . . 1 24 Matter Fused 16 | . . . . . . . . . . . . . . . . . 1 15 Heat Flow Errors 11 | . . . . . . . . . . . . . . . . . 2 9 Energy Discharges 11 | . . . . . . . . . . . . . . . . . . 11 Parts Rejected 1 | . . . . . . . . . . . . . . . . . . 1 Parts Fused 1 | . . . . . . . . . . . . . . . . . . 1 Data Loss (minor) 12 | . . . . . . . . . . . . . . . . . . 12 Data Loss (major) 9 | . . . . . . . . . . . . . . . . . . 9 Alerts 6 | . . . . . . . . . . . . . . . . . . 6 Misdirections 2 | . . . . . . . . . . . . . . . . . . 2 Weapon Failures 9 | . . . . . . . . . . . . . . . . . . 9 Overload Shots . | . . . . . . . . . . . . . . . . . . . Overflow Damage 1600 | . . . . 36 . 33 19 . 69 . . 70 . . 181 . 24 1168 Projectiles 618 | . . . . . . . . . . . . . . . . . . 618 Explosions 274 | . . . . . . . . . . . . . . . 34 . . 240 Melee 708 | . . . . 36 . 33 19 . 69 . . 70 . . 147 . 24 310 Knockbacks 30 | . . . . . . . . . . . . . . . 1 . . 29 Impact 1 | . . . . . . . . . . . . . . . 1 . . . Kinetic 28 | . . . . . . . . . . . . . . . . . . 28 Secondary 1 | . . . . . . . . . . . . . . . . . . 1 Self-Inflicted Damage 901 | . . . . . . . . . . . . . . . 32 . . 869 Shots 25 | . . . . . . . . . . . . . . . 1 . . 24 Rammed . | . . . . . . . . . . . . . . . . . . . Targets Rammed . | . . . . . . . . . . . . . . . . . . . Kicked . | . . . . . . . . . . . . . . . . . . . Crushed . | . . . . . . . . . . . . . . . . . . . Highest Temperature 284 | 135 54 . . 4 . . . . . . . . . . 284 270 191 205 Average Temperature 64 | 38 16 . . 2 . . . . . . . . . . 101 99 45 77 Received Heat Transfer 585 | . . 6 . 12 . 15 . . 18 9 . . . . 9 18 9 489 Siege Activations . | . . . . . . . . . . . . . . . . . . . Martial Activations . | . . . . . . . . . . . . . . . . . . . Shielding Activations . | . . . . . . . . . . . . . . . . . . . Robots Disrupted . | . . . . . . . . . . . . . . . . . . . Combat Hostiles . | . . . . . . . . . . . . . . . . . . . Robots Corrupted 2 | . . . . . . . . . . . . . . . 2 . . . Combat Hostiles . | . . . . . . . . . . . . . . . . . . . Parts Fried 2 | . . . . . . . . . . . . . . . 2 . . . Impact Corruptions 4 | . . . . . . . . . . . . 1 . . 3 . . . Robots Melted . | . . . . . . . . . . . . . . . . . . . Combat Hostiles . | . . . . . . . . . . . . . . . . . . . Parts Melted 3 | . . . . . . . . . . . . . . . . . . 3 Heat Transferred 1110 | 703 407 . . . . . . . . . . . . . . . . . Parts Sabotaged . | . . . . . . . . . . . . . . . . . . . Parts Stolen . | . . . . . . . . . . . . . . . . . . . Parts Stripped . | . . . . . . . . . . . . . . . . . . . Power Chain Reactions . | . . . . . . . . . . . . . . . . . . . Alert | -11 -10 -10 -8 -6 -6 -6 -5 -5 -5 -4 -4 -4 -4 -3 -3 -2 -2 -2 ------- Run | Yrd Mat Sub Scr Fac Was Fac Fac Was Fac Fac Upp Upp Zhi Pro Res Res Qua Frg Maximum Alert Level 5 | . . . . . . . . . . . . . . . 1 1 . 5 Low Security (%) 66 | 100 100 . . 100 100 100 100 100 100 100 . . . . 50 21 100 24 Level 1 6 | . . . . . . . . . . . . . . . 49 78 . 5 Level 2 5 | . . . . . . . . . . . . . . . . . . 15 Level 3 3 | . . . . . . . . . . . . . . . . . . 10 Level 4 3 | . . . . . . . . . . . . . . . . . . 8 Level 5 13 | . . . . . . . . . . . . . . . . . . 36 High Security . | . . . . . . . . . . . . . . . . . . . Max Security . | . . . . . . . . . . . . . . . . . . . Peak Influence 4323 | 10 7 . . 62 17 53 109 5 32 30 . . . . 296 305 185 4323 Initial 162 | . . . . . 17 . 19 5 . . . . . . . 162 150 16 Average 599 | 1 . . . 16 9 5 62 2 5 7 . . . . 180 245 88 1505 Influence Increases 6949 | 60 17 . . 228 . 194 166 . 165 36 . 90 . . 368 255 171 5199 Destroy 0b10 Robot/C 2740 | . . . . . . . . . . . . 80 . . 60 . . 2600 Destroy 0b10 Robot/NC 280 | 60 15 . . 15 . 20 10 . 25 . . . . . 25 . . 110 Destroy Leader 448 | . 2 . . 4 . 6 2 . 6 . . 10 . . 16 . . 402 Successful Hack 241 | . . . . 17 . 50 43 . 16 . . . . . 25 33 51 6 Select Force Hacks 30 | . . . . . . . . . . 30 . . . . . . . . Disable Machine 420 | . . . . 15 . . . . . . . . . . 15 . 30 360 Anti-Garrison Action 200 | . . . . . . . . . . . . . . . . . . 200 Destroy Structure 1360 | . . . . 27 . 28 36 . 58 6 . . . . 92 42 60 1011 Partial Spotted 510 | . . . . 105 . 15 . . 30 . . . . . 45 180 30 105 Lose Combat Pursuer 720 | . . . . 45 . 75 75 . 30 . . . . . 90 . . 405 Influence Decreases 2636 | 60 17 . . 179 49 154 191 15 165 36 . 20 70 . 80 276 408 916 Entered New Map 390 | . . . . . 32 . 21 10 . . . . 70 . . 126 117 14 Time Decay 1717 | 60 17 . . 179 17 154 170 5 165 36 . 20 . . 70 120 110 594 Lost Part 340 | . . . . . . . . . . . . . . . 10 30 . 300 Lost Ally 8 | . . . . . . . . . . . . . . . . . . 8 Purge Threat 181 | . . . . . . . . . . . . . . . . . 181 . Squads Dispatched 56 | . 1 . . 11 . 12 7 . 6 1 . . . . 3 4 2 9 Investigation 36 | . . . . 7 . 8 4 . 4 1 . . . . 3 3 . 6 Extermination 10 | . . . . 2 . 2 1 . 1 . . . . . . 1 2 1 Reinforcement 10 | . 1 . . 2 . 2 2 . 1 . . . . . . . . 2 Assault . | . . . . . . . . . . . . . . . . . . . Garrison . | . . . . . . . . . . . . . . . . . . . Intercept . | . . . . . . . . . . . . . . . . . . . Searches Triggered . | . . . . . . . . . . . . . . . . . . . Construction Impeded . | . . . . . . . . . . . . . . . . . . . Haulers Reinforced 1 | . . . . 1 . . . . . . . . . . . . . . Active Scanning Responses . | . . . . . . . . . . . . . . . . . . . Cargo Convoy Interrupts . | . . . . . . . . . . . . . . . . . . . Stealth | -11 -10 -10 -8 -6 -6 -6 -5 -5 -5 -4 -4 -4 -4 -3 -3 -2 -2 -2 --------- Run | Yrd Mat Sub Scr Fac Was Fac Fac Was Fac Fac Upp Upp Zhi Pro Res Res Qua Frg Distress Signals 26 | . 2 . . 1 . 4 . . 1 . . . . . 3 4 . 11 Communications Jammed 18 | . . . . . . . . . . . . . . . 7 3 2 6 Distress Signals 16 | . . . . . . . . . . . . . . . 7 1 2 6 Times Spotted 396 | . 6 1 . 14 5 33 11 6 14 5 5 . . 4 10 22 9 251 Peak Tracking Total 13 | . 3 1 . 6 5 8 5 6 5 5 4 . . 3 4 10 7 13 Tactical Retreats 53 | . . . . 3 . 11 3 . 4 2 1 . . 1 3 6 2 17 ECM-based Alert Blocks 53 | . . . . 1 . 16 2 . 3 4 4 . . . 1 11 7 4 Traps | -11 -10 -10 -8 -6 -6 -6 -5 -5 -5 -4 -4 -4 -4 -3 -3 -2 -2 -2 ------- Run | Yrd Mat Sub Scr Fac Was Fac Fac Was Fac Fac Upp Upp Zhi Pro Res Res Qua Frg Traps Triggered 6 | . . . . 1 . 1 1 . . . . . . . . . 1 2 Indirectly . | . . . . . . . . . . . . . . . . . . . Trap Hack Attempts . | . . . . . . . . . . . . . . . . . . . Triggered . | . . . . . . . . . . . . . . . . . . . Disarmed . | . . . . . . . . . . . . . . . . . . . Reprogrammed . | . . . . . . . . . . . . . . . . . . . Reused . | . . . . . . . . . . . . . . . . . . . Traps Extracted . | . . . . . . . . . . . . . . . . . . . Installed . | . . . . . . . . . . . . . . . . . . . Triggered . | . . . . . . . . . . . . . . . . . . . Machines | -11 -10 -10 -8 -6 -6 -6 -5 -5 -5 -4 -4 -4 -4 -3 -3 -2 -2 -2 ---------- Run | Yrd Mat Sub Scr Fac Was Fac Fac Was Fac Fac Upp Upp Zhi Pro Res Res Qua Frg Machines Disabled 28 | . . . . 1 . . . . . . . . . . 1 . 2 24 Max in Single Turn 4 | . . . . 1 . . . . . . . . . . 1 . 1 4 Garrison Access 2 | . . . . 1 . . . . . . . . . . . . . 1 Machines Repaired . | . . . . . . . . . . . . . . . . . . . Machines Dismantled . | . . . . . . . . . . . . . . . . . . . Machines Sabotaged . | . . . . . . . . . . . . . . . . . . . Overloaded Fab Kills . | . . . . . . . . . . . . . . . . . . . Hacking | -11 -10 -10 -8 -6 -6 -6 -5 -5 -5 -4 -4 -4 -4 -3 -3 -2 -2 -2 --------- Run | Yrd Mat Sub Scr Fac Was Fac Fac Was Fac Fac Upp Upp Zhi Pro Res Res Qua Frg Machines Accessed 99 | . . . 2 19 . 22 9 . 10 1 . 2 4 . 5 8 7 10 Terminals 44 | . . . . 10 . 9 5 . 2 . . . . . 3 4 5 6 Fabricators 4 | . . . . . . 3 . . 1 . . . . . . . . . Repair Stations 6 | . . . . 1 . 2 . . . . . . . . . 1 1 1 Recycling Units 26 | . . . . 6 . 6 4 . 4 . . . . . 2 2 . 2 Scanalyzers 8 | . . . . 1 . 2 . . 2 1 . . . . . 1 1 . Garrison Access 3 | . . . . 1 . . . . 1 . . . . . . . . 1 Total Hacks 225 | . . . 16 38 . 36 17 . 23 5 . 7 17 . 11 14 15 26 Successful 135 | . . . 16 20 . 17 10 . 14 2 . 7 17 . 5 6 10 11 Failed 89 | . . . . 17 . 19 7 . 9 3 . . . . 6 8 5 15 Catastrophic 19 | . . . . 7 . 5 1 . 1 . . . . . 1 1 . 3 Database Lockouts 1 | . . . . 1 . . . . . . . . . . . . . . Manual 101 | . . . . 24 . 19 12 . 11 2 . . . . 10 7 . 16 Terminals 100 | . . . . 25 . 15 10 . 6 . . . . . 9 7 11 17 Fabricators 8 | . . . . . . 6 . . 2 . . . . . . . . . Repair Stations 14 | . . . . 2 . 5 . . . . . . . . . 3 2 2 Recycling Units 36 | . . . . 8 . 6 7 . 6 . . . . . 2 2 . 5 Scanalyzers 23 | . . . . 2 . 4 . . 8 5 . . . . . 2 2 . Garrison Access 4 | . . . . 1 . . . . 1 . . . . . . . . 2 Terminal Hacks 63 | . . . 16 2 . . 4 . 2 . . 7 17 . 1 2 7 5 Record 27 | . . . 16 . . . . . . . . 6 5 . . . . . Part Schematic 4 | . . . . . . . . . . . . . 4 . . . . . Robot Analysis 4 | . . . . . . . . . . . . . 4 . . . . . Prototype ID Bank 4 | . . . . . . . . . . . . . 4 . . . . . Open Door 2 | . . . . . . . . . . . . 1 . . . 1 . . Level Access Points 1 | . . . . . . . . . 1 . . . . . . . . . Branch Access Points 2 | . . . . . . . . . . . . . . . . 1 1 . Emergency Access Points 2 | . . . . . . . 1 . . . . . . . . . 1 . Terminal Index 2 | . . . . . . . 1 . . . . . . . 1 . . . Recycling Unit Index 1 | . . . . . . . . . 1 . . . . . . . . . Unreport Threat 3 | . . . . . . . . . . . . . . . . . 3 . Locate Traps 4 | . . . . 1 . . 1 . . . . . . . . . . 2 Hauler Manifests 1 | . . . . . . . 1 . . . . . . . . . . . Registered Components 2 | . . . . . . . . . . . . . . . . . 1 1 Zone Layout 4 | . . . . 1 . . . . . . . . . . . . 1 2 Fabricator Hacks 5 | . . . . . . 4 . . 1 . . . . . . . . . Network Status 3 | . . . . . . 2 . . 1 . . . . . . . . . Build 2 | . . . . . . 2 . . . . . . . . . . . . Repair Station Hacks 5 | . . . . . . 3 . . . . . . . . . 1 1 . Scan Component 4 | . . . . . . 2 . . . . . . . . . 1 1 . Repair 1 | . . . . . . 1 . . . . . . . . . . . . Recycling Unit Hacks 1 | . . . . 1 . . . . . . . . . . . . . . Retrieve Components 1 | . . . . 1 . . . . . . . . . . . . . . Scanalyzer 11 | . . . . 1 . 1 . . 6 1 . . . . . . 2 . Insert Component 2 | . . . . . . . . . 2 . . . . . . . . . Analyze 2 | . . . . . . . . . 2 . . . . . . . . . Retrieve Study 7 | . . . . 1 . 1 . . 2 1 . . . . . . 2 . Garrison Access Hacks 1 | . . . . 1 . . . . . . . . . . . . . . Seal Access 1 | . . . . 1 . . . . . . . . . . . . . . Unauthorized Hacks 49 | . . . . 15 . 9 6 . 5 1 . . . . 4 3 . 6 Terminals 20 | . . . . 8 . 3 3 . 1 . . . . . 2 1 . 2 Assimilate 3 | . . . . . . 1 . . 1 . . . . . . . . 1 Botnet 11 | . . . . 3 . 1 3 . . . . . . . 2 1 . 1 Skim 6 | . . . . 5 . 1 . . . . . . . . . . . . Fabricators . | . . . . . . . . . . . . . . . . . . . Repair Stations 2 | . . . . 1 . . . . . . . . . . . . . 1 Patch 2 | . . . . 1 . . . . . . . . . . . . . 1 Recycling Units 25 | . . . . 6 . 6 3 . 4 . . . . . 2 2 . 2 Fedlink 24 | . . . . 6 . 6 3 . 4 . . . . . 2 2 . 1 Scrapoids 1 | . . . . . . . . . . . . . . . . . . 1 Scanalyzers 1 | . . . . . . . . . . 1 . . . . . . . . Extract 1 | . . . . . . . . . . 1 . . . . . . . . Garrison Access 1 | . . . . . . . . . . . . . . . . . . 1 Jam 1 | . . . . . . . . . . . . . . . . . . 1 Data Cores Recovered . | . . . . . . . . . . . . . . . . . . . Used . | . . . . . . . . . . . . . . . . . . . Hacking Detections 60 | . . . . 13 . 14 7 . 5 . . . . . 3 4 6 8 Full Trace Events 5 | . . . . . . 2 1 . . . . . . . 1 1 . . Feedback Events . | . . . . . . . . . . . . . . . . . . . Feedback Blocked . | . . . . . . . . . . . . . . . . . . . Robot Schematics Acquired 2 | . . . . . . . . . . . . . . . . . . 2 Robots Built . | . . . . . . . . . . . . . . . . . . . Authchips . | . . . . . . . . . . . . . . . . . . . Time . | . . . . . . . . . . . . . . . . . . . Total Robot Build Rating . | . . . . . . . . . . . . . . . . . . . Part Schematics Acquired 10 | . . . . . . . . . 2 2 . . 4 . . . . 2 Parts Built 2 | . . . . . . 2 . . . . . . . . . . . . Authchips . | . . . . . . . . . . . . . . . . . . . Time 186 | . . . . . . 186 . . . . . . . . . . . . Total Part Build Rating 15 | . . . . . . 15 . . . . . . . . . . . . Part Studies Acquired 7 | . . . . 1 . 1 . . 2 1 . . . . . . 2 . Parts Repaired 1 | . . . . . . 1 . . . . . . . . . . . . Time 86 | . . . . . . 86 . . . . . . . . . . . . Parts Recycled . | . . . . . . . . . . . . . . . . . . . Recycled Matter . | . . . . . . . . . . . . . . . . . . . Retrieved Matter . | . . . . . . . . . . . . . . . . . . . Retrieved Components . | . . . . . . . . . . . . . . . . . . . Parts Scanalyzed 2 | . . . . . . . . . 2 . . . . . . . . . Part Schematics Acquired 2 | . . . . . . . . . 2 . . . . . . . . . Parts Damaged . | . . . . . . . . . . . . . . . . . . . Bothacking | -11 -10 -10 -8 -6 -6 -6 -5 -5 -5 -4 -4 -4 -4 -3 -3 -2 -2 -2 ------------ Run | Yrd Mat Sub Scr Fac Was Fac Fac Was Fac Fac Upp Upp Zhi Pro Res Res Qua Frg Used RIF Installer . | . . . . . . . . . . . . . . . . . . . Robots Hacked 7 | . . . . 1 . 3 . . 1 . . . . . 2 . . . Non-combat 7 | . . . . 1 . 3 . . 1 . . . . . 2 . . . Combat . | . . . . . . . . . . . . . . . . . . . Robot Hacks Applied 7 | . . . . 1 . 3 . . 1 . . . . . 2 . . . no_distress 4 | . . . . . . 2 . . 1 . . . . . 1 . . . find_chute 1 | . . . . 1 . . . . . . . . . . . . . . find_recycling 2 | . . . . . . 1 . . . . . . . . 1 . . . Relay Couplers Released . | . . . . . . . . . . . . . . . . . . . Fabnet Peak Effective % . | . . . . . . . . . . . . . . . . . . . Robots Rewired . | . . . . . . . . . . . . . . . . . . . Allies Hacked . | . . . . . . . . . . . . . . . . . . . Hacks Repelled . | . . . . . . . . . . . . . . . . . . . Allies | -11 -10 -10 -8 -6 -6 -6 -5 -5 -5 -4 -4 -4 -4 -3 -3 -2 -2 -2 -------- Run | Yrd Mat Sub Scr Fac Was Fac Fac Was Fac Fac Upp Upp Zhi Pro Res Res Qua Frg Total Allies 3 | . . . . . . 1 . . 1 . . . . . . . . 1 Largest Group 1 | . . . . . . 1 . . 1 . . . . . . . . 1 Highest-Rated Group 26 | . . . . . . 26 . . 7 . . . . . . . . 26 Highest-Rated Ally 26 | . . . . . . 26 . . 7 . . . . . . . . 26 Initial UFD Resources 122 | . . . . 24 46 46 61 77 77 89 89 89 89 91 91 108 122 122 Total Orders . | . . . . . . . . . . . . . . . . . . . Ally Attacks . | . . . . . . . . . . . . . . . . . . . Total Damage . | . . . . . . . . . . . . . . . . . . . Kills . | . . . . . . . . . . . . . . . . . . . Allies Corrupted . | . . . . . . . . . . . . . . . . . . . Allies Melted 1 | . . . . . . . . . . . . . . . . . . 1 Intel | -11 -10 -10 -8 -6 -6 -6 -5 -5 -5 -4 -4 -4 -4 -3 -3 -2 -2 -2 ------- Run | Yrd Mat Sub Scr Fac Was Fac Fac Was Fac Fac Upp Upp Zhi Pro Res Res Qua Frg Active Infowar (turns) 8386 | 110 306 234 1213 562 47 815 347 32 663 150 391 128 66 242 178 248 228 2426 Optics 5964 | . . . . 3 47 815 347 32 663 150 391 128 66 242 178 248 228 2426 Sensors 3989 | . . . . 385 47 814 347 32 663 150 391 128 66 242 177 49 222 276 IFF 155 | . . . . 155 . . . . . . . . . . . . . . Structural 361 | . . . . . . . . . . . . . . . 142 219 . . Traps 3958 | . . . . . . . 346 32 653 143 391 128 66 242 178 248 228 1303 Seismic 2053 | 110 306 234 1213 24 . . . . . . . . . . . 166 . . Triangulation 479 | . . . . . . . . . . . . . . . . . 150 329 Jamming 905 | . . . . . . . . . . . . . . . 154 248 228 275 ECM 2240 | . . . . 56 . 455 55 32 302 143 87 . 36 242 24 238 228 342 Robot Analysis Total 4 | . . . . . . . . . . . . . 4 . . . . . Derelict Logs Recovered 2 | . . . 2 . . . . . . . . . . . . . . . Drone Launches . | . . . . . . . . . . . . . . . . . . . Drone Recoveries . | . . . . . . . . . . . . . . . . . . . Exploration | -11 -10 -10 -8 -6 -6 -6 -5 -5 -5 -4 -4 -4 -4 -3 -3 -2 -2 -2 ------------- Run | Yrd Mat Sub Scr Fac Was Fac Fac Was Fac Fac Upp Upp Zhi Pro Res Res Qua Frg Turns Passed 9106 | 385 306 234 1612 577 47 815 347 32 663 150 391 128 66 242 178 248 228 2457 Spaces Moved 13735 | 216 209 187 1441 1280 125 1941 623 81 1259 312 587 292 148 655 432 499 512 2936 Core 7 | 5 . . . . . . . . . . . . . . . . . 2 Treads . | . . . . . . . . . . . . . . . . . . . Legs 935 | 211 209 187 34 . . . . . . . . . . . . . . 294 Wheels 952 | . . . 952 . . . . . . . . . . . . . . . Hover 1657 | . . . . . . . . . . . . . . . . . . 1657 Flight 10184 | . . . 455 1280 125 1941 623 81 1259 312 587 292 148 655 432 499 512 983 Fastest Speed 15 | 50 120 120 32 27 27 27 35 39 39 39 39 39 32 32 18 22 22 15 Average Speed 47 | 118 120 120 108 27 27 33 37 39 39 39 48 39 37 32 26 26 28 44 Slowest Speed 1300 | 120 120 120 280 29 27 114 39 39 39 39 125 39 112 105 28 29 29 1300 Overloaded Moves 369 | . . . . . . . . . . . . . . . 59 142 13 155 Propulsion Burnouts . | . . . . . . . . . . . . . . . . . . . Robots Hopped 48 | . . . . 9 . 4 3 . 7 4 . . . . 2 9 1 9 Potential Cave-ins 14 | . . . . . . . . . . . . . . . . 10 . 4 Cave-ins Triggered 1 | . . . . . . . . . . . . . . . . . . 1 Teleports 1 | . . . . . . . . . . . . . . . 1 . . . Exploration Rate (%) 48 | 6 41 10 86 33 77 52 22 80 33 6 68 65 63 84 16 21 76 76 Regions Visited 18 Branch Regions 8 Pre-discovered Areas 8 | . . . 3 1 . . . . . . . 1 3 . . . . . Known Exits Taken 9 | . . . 1 . . 1 . . 1 1 1 1 1 1 . 1 . . Unknown Exits Taken 5 | 1 1 1 . . . . . . . . . . . . 1 . 1 . Scrap Searched 11 | . . . 4 . . . . . . . 3 2 . 2 . . . . Spaces Dug 193 | . . . . 27 . 28 18 . 29 3 10 . . 7 3 22 18 28 Terrain Destroyed 976 | . . . . 27 . 28 18 . 29 3 86 10 . 32 51 24 20 648 Melee 163 | . . . . 27 . 28 18 . 29 3 10 . . 7 1 14 1 25 Projectile 143 | . . . . . . . . . . . . . . . 2 10 19 112 AOE 670 | . . . . . . . . . . . 76 10 . 25 48 . . 511 Terrain Rammed . | . . . . . . . . . . . . . . . . . . . Walls Destroyed . | . . . . . . . . . . . . . . . . . . . Machines Disabled . | . . . . . . . . . . . . . . . . . . . Actions | -11 -10 -10 -8 -6 -6 -6 -5 -5 -5 -4 -4 -4 -4 -3 -3 -2 -2 -2 --------- Run | Yrd Mat Sub Scr Fac Was Fac Fac Was Fac Fac Upp Upp Zhi Pro Res Res Qua Frg Total 15263 | 268 229 195 1487 1426 138 2050 699 80 1360 327 671 299 157 670 471 563 565 3608 Wait 519 | . 2 5 . 70 12 33 48 . 60 10 64 . . . 12 39 . 164 Move 13625 | 215 208 186 1440 1262 124 1932 617 80 1244 303 586 291 147 654 427 482 509 2918 Hop 44 | . . . . 8 . 4 3 . 7 4 . . . . 2 7 1 8 Pick Up 95 | 8 1 2 18 4 1 5 3 . 1 1 . 1 2 . 2 . 3 43 Fast Attach 96 | 7 . . 8 11 . 5 1 . . 2 1 . 4 . 3 3 4 47 Attach 48 | . . . 2 6 . . 2 . . 1 . . . . 2 2 4 29 Detach 13 | . . . . 1 . . . . . . . . . . 1 2 1 8 Swap 73 | . 1 . 5 2 . 3 . . . . 5 3 1 5 6 1 1 40 Drop 114 | 1 . 1 14 11 1 12 3 . 1 . 2 1 3 1 2 1 4 56 Fire 315 | 37 17 1 . 10 . . . . . . 3 1 . 1 5 10 21 209 Melee 272 | . . . . 40 . 47 22 . 47 6 10 2 . 9 9 16 2 62 Ram . | . . . . . . . . . . . . . . . . . . . Kick . | . . . . . . . . . . . . . . . . . . . Crush . | . . . . . . . . . . . . . . . . . . . Escape Stasis 26 | . . . . 1 . 9 . . . . . . . . . . 15 1 Rewire . | . . . . . . . . . . . . . . . . . . . Trap . | . . . . . . . . . . . . . . . . . . . Miscellaneous 23 | . . . . . . . . . . . . . . . . . . 23 Route ------- -11/Scrapyard -10/Materials (discovered 2 exits: [*Mat] / [*Sub]) -10/Subcaves -8/Scraptown (discovered 2 exits: *Fac x2) -6/Factory (discovered 6 exits: *Fac x4 / *Low x2) -6/Waste -6/Factory (discovered 4 exits: *Fac x2 / *Low x2) -5/Factory (discovered 2 exits: *Upp x2) -5/Waste -5/Factory (discovered 4 exits: *Fac x4) -4/Factory (discovered 3 exits: Res x2 / *Upp) -4/Upper Caves -4/Upper Caves (discovered 2 exits: Res / *Zhi) -4/Zhirov -3/Proximity Caves -3/Research -2/Research (discovered 2 exits: *Qua x2) -2/Quarantine (discovered 2 exits: [*Sec] / *Frg) -2/Protoforge (discovered 1 exit: [*Acc]) History --------- Turn | Location | Event 7 | -11/Scrapyard | Discovered new exit (range 15) 386 | -11/Scrapyard | Entered Materials 387 | -10/Materials | Build established: Mutant 387 | -10/Materials | Met a group of wandering Federalists 555 | -10/Materials | Discovered new exit (range 8) 601 | -10/Materials | Discovered new exit (range 10) 692 | -10/Materials | Entered Subcaves 693 | -10/Subcaves | Continued accompanying wandering Federalists (4) 693 | -10/Subcaves | Approached by a straggling Scientist 912 | -10/Subcaves | Wandering Federalist uncovered a shortcut to Scraptown 926 | -10/Subcaves | Entered Scraptown 1112 | -8/Scraptown | Visited Awakened 1137 | -8/Scraptown | Visited Red Mages 1330 | -8/Scraptown | Heard Great Nut preacher, LISTEN AND RECITE! 1364 | -8/Scraptown | Discovered new exit (range 11) 1408 | -8/Scraptown | Scanned Subdweller tech in exchange for log data 1411 | -8/Scraptown | Learned Factory trap positions 1412 | -8/Scraptown | Learned Factory interactive machine intel 1441 | -8/Scraptown | Visited Assassins FH 1487 | -8/Scraptown | Visited Spacefarers 1518 | -8/Scraptown | Visited SPCMW 1525 | -8/Scraptown | Visited Comm Corps 1545 | -8/Scraptown | Visited UFD Registry 1545 | -8/Scraptown | Registered with UFD as "Biodome" 1572 | -8/Scraptown | Visited Curators Association 1591 | -8/Scraptown | Visited Derelict Rescue Squad 1598 | -8/Scraptown | Found DRS Beacon 1620 | -8/Scraptown | Visited Science Testing Area 1744 | -8/Scraptown | Visited DA-N13 Charitable Foundation 1754 | -8/Scraptown | Found DCF Scrap (30 items) 1794 | -8/Scraptown | Visited A0-MCA Data Center 1801 | -8/Scraptown | Given a C rating by A0-MCA 1808 | -8/Scraptown | Found A0-MCA's Component Scanner 1829 | -8/Scraptown | Visited Cartography Club 1904 | -8/Scraptown | Learned location of Recycling (-8) 1904 | -8/Scraptown | Learned location of Hub_04(d) (-5) 1904 | -8/Scraptown | Learned location of Testing (-3) 1904 | -8/Scraptown | Learned 8 Materials zone layouts 1904 | -8/Scraptown | Learned 8 Factory zone layouts 1904 | -8/Scraptown | Learned 4 Recycling zone layouts 1904 | -8/Scraptown | Learned 8 Lower Caves zone layouts 1904 | -8/Scraptown | Learned 20 Lower Caves zone layouts 1904 | -8/Scraptown | Learned location of 1 exit from Factory 1904 | -8/Scraptown | Learned location of 1 exit from Upper Caves 1904 | -8/Scraptown | Learned location of 3 exits from Upper Caves 1904 | -8/Scraptown | Identified exit to Factory 1947 | -8/Scraptown | Visited Junk Repository 1997 | -8/Scraptown | Visited Junk Repository 2472 | -8/Scraptown | Met Optimus 2472 | -8/Scraptown | Accepted into 0bPrime 2538 | -8/Scraptown | Entered Factory 2538 | -6/Factory | Evolved 8 slots: Propulsion x2, Utility x6 2539 | -6/Factory | Identified exit to Factory 2539 | -6/Factory | Identified exit to Lower Caves 2542 | -6/Factory | Loaded intel: 98 trap records 2543 | -6/Factory | Loaded intel: 54 interactive machine locations 2547 | -6/Factory | Loaded intel: 8 recycling unit locations 2583 | -6/Factory | Learned location of Protoforge (-2) 2868 | -6/Factory | Learned location of 2 exits from Proximity Caves 2890 | -6/Factory | Central database locked down 2931 | -6/Factory | Learned location of 1 exit from Proximity Caves 2984 | -6/Factory | Learned location of 1 exit from Proximity Caves 3062 | -6/Factory | Learned location of 2 exits from Lower Caves 3085 | -6/Factory | Learned location of 1 exit from Cetus 3115 | -6/Factory | Manually triggered Chute Trap 3115 | -6/Factory | Sucked down chute 3115 | -6/Factory | Entered Waste 3135 | -6/Waste | Spotted C-40 Crusher 3135 | -6/Waste | Spotted C-40 Crusher 3153 | -6/Waste | Spotted C-40 Crusher 3156 | -6/Waste | Discovered new exit (range 21) 3157 | -6/Waste | Spotted C-40 Crusher 3158 | -6/Waste | Spotted C-40 Crusher 3162 | -6/Waste | Identified exit to Factory 3162 | -6/Waste | Entered Factory 3169 | -6/Factory | Discovered exit to Lower Caves (range 21) 3280 | -6/Factory | Fabricated Micro-nuke Launcher? 3295 | -6/Factory | Loaded intel: 8 recycling unit locations 3298 | -6/Factory | Fabricated Impulse Thruster Array? 3298 | -6/Factory | Repaired Broken Lrn. Sensor Array? 3406 | -6/Factory | Build established: Ninja 3542 | -6/Factory | Spotted B-75 Beast 3663 | -6/Factory | Discovered exit to Factory (range 4) 3963 | -6/Factory | Discovered exit to Factory (range 14) 3977 | -6/Factory | Entered another Factory area 3977 | -5/Factory | Evolved 2 slots: Utility x2 3978 | -5/Factory | Identified exit to Upper Caves 4010 | -5/Factory | Loaded intel: 8 recycling unit locations 4324 | -5/Factory | Manually triggered Chute Trap 4324 | -5/Factory | Sucked down chute 4324 | -5/Factory | Entered Waste 4328 | -5/Waste | Spotted C-40 Crusher 4334 | -5/Waste | Spotted C-40 Crusher 4337 | -5/Waste | Spotted C-40 Crusher 4343 | -5/Waste | Spotted C-40 Crusher 4343 | -5/Waste | Spotted C-40 Crusher 4348 | -5/Waste | Discovered new exit (range 22) 4350 | -5/Waste | Spotted C-40 Crusher 4355 | -5/Waste | Identified exit to Factory 4356 | -5/Waste | Entered Factory 4460 | -5/Factory | Identified exit to Factory 4581 | -5/Factory | Loaded intel: 8 recycling unit locations 5019 | -5/Factory | Entered another Factory area 5019 | -4/Factory | Evolved 2 slots: Power x1, Utility x1 5020 | -4/Factory | Identified exit to Research 5092 | -4/Factory | Discovered new exit (range 4) 5168 | -4/Factory | Identified exit to Upper Caves 5169 | -4/Factory | Entered Upper Caves 5170 | -4/Upper Caves | Identified exit to Upper Caves 5442 | -4/Upper Caves | Encountered a Warlord checkpoint 5560 | -4/Upper Caves | Entered another Upper Caves area 5561 | -4/Upper Caves | Identified exit to Zhirov 5680 | -4/Upper Caves | Entered an active Warlord outpost 5683 | -4/Upper Caves | Learned Armory stockpile data 5683 | -4/Upper Caves | Learned Armory terminal intel 5683 | -4/Upper Caves | Learned Research garrison access intel 5688 | -4/Upper Caves | Entered Zhirov 5688 | -4/Zhirov | Discovered new exit (range 3) 5696 | -4/Zhirov | Met Zhirov 5708 | -4/Zhirov | Learned location of Quarantine (-2) 5708 | -4/Zhirov | Learned location of Command (-1) 5710 | -4/Zhirov | Zhirov requested help retrieving the SGEMP Prototype 5712 | -4/Zhirov | Build established: Hacker-Ninja 5716 | -4/Zhirov | Found Alien Artifact 5716 | -4/Zhirov | Identified Integrated Reactor 5716 | -4/Zhirov | Installed Integrated Reactor, increased core energy generation (+10) 5727 | -4/Zhirov | Found Alien Artifact 5754 | -4/Zhirov | Identified exit to Proximity Caves 5754 | -4/Zhirov | Entered Proximity Caves 5996 | -3/Proximity Caves | Entered Research 5996 | -3/Research | Evolved 2 slots: Propulsion x2 5997 | -3/Research | Loaded intel: 3 garrison access locations 6055 | -3/Research | Discovered new exit (range 22) 6108 | -3/Research | Loaded intel: 5 recycling unit locations 6150 | -3/Research | Identified Transdimensional Reconstructor 6150 | -3/Research | Warped through subspace 6174 | -3/Research | Entered another Research area 6174 | -2/Research | Evolved 2 slots: Utility x1, Weapon x1 6222 | -2/Research | Loaded intel: 5 recycling unit locations 6292 | -2/Research | Identified exit to Quarantine 6422 | -2/Research | Entered Quarantine 6424 | -2/Quarantine | Lost 3 parts (3u) 6471 | -2/Quarantine | Found Alien Artifact 6471 | -2/Quarantine | Identified Phase Redirector 6567 | -2/Quarantine | Build established: Hacker-Sprinter 6587 | -2/Quarantine | Found Alien Slashing Weapon 6587 | -2/Quarantine | Identified Sigix Broadsword 6629 | -2/Quarantine | Spotted Fortress 6648 | -2/Quarantine | Discovered new exit (range 6) 6648 | -2/Quarantine | Discovered new exit (range 6) 6650 | -2/Quarantine | Entered Protoforge 6723 | -2/Protoforge | Superfortress began startup sequence 6741 | -2/Protoforge | Watched by a mysterious "MATRIX" hacker 6742 | -2/Protoforge | Spotted Hotshot 6742 | -2/Protoforge | Spotted Hotshot 6752 | -2/Protoforge | Spotted AP7-3 6752 | -2/Protoforge | Spotted AP7-3 6887 | -2/Protoforge | Spotted EXE-6 6888 | -2/Protoforge | Spotted EXE-6 6889 | -2/Protoforge | Spotted SKR-2 6889 | -2/Protoforge | Spotted SKR-2 6889 | -2/Protoforge | Spotted SKR-2 6900 | -2/Protoforge | UFD initiated attack on Protoforge (Readiness: Maximal) 6900 | -2/Protoforge | Loaded intel: 3 recycling unit locations 6934 | -2/Protoforge | Found Exp. Melee Analysis Suite 6936 | -2/Protoforge | Optimus greeted in Protoforge 6938 | -2/Protoforge | Spotted EXE-6 6939 | -2/Protoforge | Spotted EXE-6 6956 | -2/Protoforge | Forge Plexus network access discovered 6962 | -2/Protoforge | Lost 5 parts (1n4u) 6962 | -2/Protoforge | Found Cep. XC Strikerail 6964 | -2/Protoforge | Found Exp. Core Analyzer 6967 | -2/Protoforge | Found Exp. Armor Integrity Analyzer 6969 | -2/Protoforge | Lost 6 allies 6969 | -2/Protoforge | Found Cep. XC Strikerail 6975 | -2/Protoforge | Spotted Decapitator 6976 | -2/Protoforge | Spotted Decapitator 6985 | -2/Protoforge | Spotted Decapitator 7016 | -2/Protoforge | Lost 4 allies 7033 | -2/Protoforge | Spotted Decapitator 7033 | -2/Protoforge | Spotted Decapitator 7033 | -2/Protoforge | Spotted Decapitator 7033 | -2/Protoforge | Spotted Decapitator 7044 | -2/Protoforge | Spotted Immortal 7044 | -2/Protoforge | Spotted Immortal 7045 | -2/Protoforge | Spotted V984-i 7051 | -2/Protoforge | Found Cep. Antigrav Storage Unit 7056 | -2/Protoforge | Spotted V487-m 7143 | -2/Protoforge | Found Cep. Gyrokinetic System 7189 | -2/Protoforge | Spotted V172-b 7189 | -2/Protoforge | Spotted V714-u 7199 | -2/Protoforge | Found Cep. Deflector Sword 7200 | -2/Protoforge | Found Cep. Helical Railcannon 7202 | -2/Protoforge | Found Cep. XC Strikerail 7204 | -2/Protoforge | Found Cep. Helical Railcannon 7281 | -2/Protoforge | Spotted Immortal 7281 | -2/Protoforge | Spotted Immortal 7291 | -2/Protoforge | Found Crosscalibrator 7294 | -2/Protoforge | Found Cep. Concussive Dispersal Blaster 7296 | -2/Protoforge | Found Faulty Cep. Concussive Dispersal Blaster 7297 | -2/Protoforge | Found Faulty Cep. Concussive Dispersal Blaster 7355 | -2/Protoforge | Found Cep. Rapid Grenade Launcher 7356 | -2/Protoforge | Found Cep. Tiamat Rocket Array 7358 | -2/Protoforge | Spotted V633-r 7358 | -2/Protoforge | Spotted V130-n 7358 | -2/Protoforge | Spotted V782-t 7358 | -2/Protoforge | Spotted V405-v 7358 | -2/Protoforge | Found Cep. Rapid Grenade Launcher 7371 | -2/Protoforge | Spotted Decapitator 7371 | -2/Protoforge | Spotted Decapitator 7371 | -2/Protoforge | Spotted Decapitator 7371 | -2/Protoforge | Spotted Decapitator 7375 | -2/Protoforge | Destroyed Decapitator 7379 | -2/Protoforge | Destroyed Decapitator 7379 | -2/Protoforge | Destroyed Decapitator 7379 | -2/Protoforge | Destroyed Decapitator 7450 | -2/Protoforge | Build established: Scavenger-Sprinter 7454 | -2/Protoforge | Found Femtoactuators 7457 | -2/Protoforge | Found Cep. Weapon Articulator 7462 | -2/Protoforge | Found Cep. Recoil Nullifier 7463 | -2/Protoforge | Found Cep. Countertargeting System 7465 | -2/Protoforge | Found Cep. Melee Reflex Suite 7467 | -2/Protoforge | Found Cep. Networked Targeting System 7472 | -2/Protoforge | Found Femtoactuators 7474 | -2/Protoforge | Found Cep. Weapon Articulator 7477 | -2/Protoforge | Found Exp. Kinecellerator 7531 | -2/Protoforge | Found Faulty Exp. Kinecellerator 7632 | -2/Protoforge | Destroyed Immortal 7647 | -2/Protoforge | Destroyed Immortal 7675 | -2/Protoforge | Found Cep. Reaction Jets 7678 | -2/Protoforge | Found Cep. RG22 Armor 7682 | -2/Protoforge | Found Cep. Projectile Intercept Suite 7686 | -2/Protoforge | Found Cep. Core Shell 7719 | -2/Protoforge | UFD reported confirmed Drillbomb installation 7739 | -2/Protoforge | Found Cep. NT7 Matterbank 7754 | -2/Protoforge | Spotted Executioner 7759 | -2/Protoforge | Destroyed Executioner 7765 | -2/Protoforge | UFD reported confirmed Drillbomb installation 7767 | -2/Protoforge | Spotted Executioner 7769 | -2/Protoforge | Destroyed Executioner 7774 | -2/Protoforge | Spotted Executioner 7774 | -2/Protoforge | Spotted Striker 7774 | -2/Protoforge | Spotted Striker 7776 | -2/Protoforge | Destroyed Striker 7776 | -2/Protoforge | Destroyed Striker 7781 | -2/Protoforge | Destroyed Executioner 7783 | -2/Protoforge | Optimus destroyed during the operation 7808 | -2/Protoforge | Destroyed 15 combat bots 7814 | -2/Protoforge | Found UFD Drillbomb 7829 | -2/Protoforge | UFD reported confirmed Drillbomb installation 7862 | -2/Protoforge | Spotted B-90 Cyclops 7864 | -2/Protoforge | Spotted Striker 7898 | -2/Protoforge | Crushed by falling debris 7899 | -2/Protoforge | System corruption reached 10% 7900 | -2/Protoforge | Spotted Hotshot 7902 | -2/Protoforge | Spotted Hotshot 7902 | -2/Protoforge | Destroyed Hotshot 7915 | -2/Protoforge | UFD reported confirmed Drillbomb installation 7943 | -2/Protoforge | Installed UFD Drillbomb at designated target 7943 | -2/Protoforge | UFD reported confirmed Drillbomb installation 7956 | -2/Protoforge | Spotted Hotshot 7956 | -2/Protoforge | Spotted Hotshot 7974 | -2/Protoforge | Build established: Scavenger-Mutant 7980 | -2/Protoforge | Found UFD Drillbomb 7983 | -2/Protoforge | UFD reported confirmed Drillbomb installation 8009 | -2/Protoforge | Destroyed Hotshot 8015 | -2/Protoforge | Destroyed Hotshot 8070 | -2/Protoforge | Spotted Striker 8072 | -2/Protoforge | Spotted Striker 8085 | -2/Protoforge | Destroyed 7 combat bots 8091 | -2/Protoforge | Destroyed Striker 8098 | -2/Protoforge | Spotted Striker 8103 | -2/Protoforge | Spotted Striker 8107 | -2/Protoforge | Destroyed Striker 8117 | -2/Protoforge | Spotted Executioner 8119 | -2/Protoforge | Spotted Striker 8129 | -2/Protoforge | Destroyed Striker 8184 | -2/Protoforge | Lost 6 allies 8201 | -2/Protoforge | Spotted Executioner 8209 | -2/Protoforge | Spotted Executioner 8212 | -2/Protoforge | P-80 Master assimilated allied 02FBO-D 8216 | -2/Protoforge | Destroyed Executioner 8244 | -2/Protoforge | Lost 3 allies 8253 | -2/Protoforge | Spotted Striker 8256 | -2/Protoforge | Spotted Striker 8260 | -2/Protoforge | Destroyed Striker 8262 | -2/Protoforge | Spotted Executioner 8264 | -2/Protoforge | Spotted Striker 8266 | -2/Protoforge | Destroyed Executioner 8272 | -2/Protoforge | UFD reported confirmed Drillbomb installation 8275 | -2/Protoforge | Spotted Striker 8275 | -2/Protoforge | Spotted Executioner 8290 | -2/Protoforge | Destroyed Striker 8309 | -2/Protoforge | Core integrity fell below 50% 8311 | -2/Protoforge | Destroyed Striker 8322 | -2/Protoforge | Lost 7 parts (1p3n1u2w) 8334 | -2/Protoforge | Destroyed Executioner 8359 | -2/Protoforge | Spotted Executioner 8360 | -2/Protoforge | Spotted Executioner 8361 | -2/Protoforge | Lost 3 allies 8372 | -2/Protoforge | Spotted Striker 8374 | -2/Protoforge | Destroyed 13 combat bots 8384 | -2/Protoforge | Destroyed Executioner 8391 | -2/Protoforge | Destroyed Striker 8395 | -2/Protoforge | Spotted Executioner 8445 | -2/Protoforge | Spotted Executioner 8451 | -2/Protoforge | Spotted Executioner 8452 | -2/Protoforge | Destroyed Executioner 8456 | -2/Protoforge | Destroyed Executioner 8460 | -2/Protoforge | Destroyed Executioner 8460 | -2/Protoforge | Destroyed Executioner 8481 | -2/Protoforge | Destroyed 15 combat bots 8487 | -2/Protoforge | Lost 3 allies 8522 | -2/Protoforge | UFD reported confirmed Drillbomb installation 8556 | -2/Protoforge | Spotted Executioner 8590 | -2/Protoforge | Found UFD Drillbomb 8598 | -2/Protoforge | Lost 5 allies 8675 | -2/Protoforge | Found Exp. Core Analyzer 8683 | -2/Protoforge | Spotted Striker 8683 | -2/Protoforge | Spotted Striker 8693 | -2/Protoforge | Destroyed Striker 8707 | -2/Protoforge | Spotted Executioner 8709 | -2/Protoforge | Spotted Striker 8742 | -2/Protoforge | Destroyed Executioner 8749 | -2/Protoforge | Lost 4 allies 8763 | -2/Protoforge | Destroyed 13 combat bots 8763 | -2/Protoforge | Spotted Striker 8764 | -2/Protoforge | Spotted Striker 8774 | -2/Protoforge | Destroyed Striker 8777 | -2/Protoforge | Destroyed Striker 8830 | -2/Protoforge | Spotted Executioner 8832 | -2/Protoforge | Spotted Executioner 8837 | -2/Protoforge | Destroyed Executioner 8866 | -2/Protoforge | Spotted Striker 8867 | -2/Protoforge | Spotted Striker 8867 | -2/Protoforge | Spotted Striker 8867 | -2/Protoforge | Spotted Striker 8870 | -2/Protoforge | Spotted Executioner 8872 | -2/Protoforge | Destroyed Striker 8875 | -2/Protoforge | Spotted Executioner 8876 | -2/Protoforge | Destroyed Striker 8896 | -2/Protoforge | Spotted Striker 8900 | -2/Protoforge | Destroyed Striker 8903 | -2/Protoforge | Spotted Executioner 8904 | -2/Protoforge | Destroyed Executioner 8923 | -2/Protoforge | Lost 7 allies 8925 | -2/Protoforge | Destroyed 14 combat bots 8927 | -2/Protoforge | Discovered new exit (range 22) 8943 | -2/Protoforge | Installed UFD Drillbomb at designated target 8943 | -2/Protoforge | UFD reported confirmed Drillbomb installation 8945 | -2/Protoforge | Found UFD Drillbomb 8950 | -2/Protoforge | Spotted Striker 8950 | -2/Protoforge | Spotted Striker 8950 | -2/Protoforge | Spotted Executioner 8950 | -2/Protoforge | Spotted Striker 8957 | -2/Protoforge | Core integrity fell below 20% 8961 | -2/Protoforge | Destroyed Striker 8964 | -2/Protoforge | Destroyed Striker 8975 | -2/Protoforge | Spotted Striker 8976 | -2/Protoforge | Spotted Executioner 8978 | -2/Protoforge | Destroyed Striker 9014 | -2/Protoforge | Lost 8 parts (1p3n2u2w) 9047 | -2/Protoforge | Lost 7 allies 9050 | -2/Protoforge | Spotted Striker 9052 | -2/Protoforge | Spotted Striker 9053 | -2/Protoforge | Spotted Striker 9055 | -2/Protoforge | Spotted Executioner 9089 | -2/Protoforge | Destroyed Striker 9097 | -2/Protoforge | Spotted Executioner 9100 | -2/Protoforge | Spotted Executioner 9107 | -2/Protoforge | Destroyed by Executioner with Helical Railgun Last Messages --------------- 09100_ Mak. Heavy Armor Plating crushed. 09100_ Railslug penetrates SE-6EI(E). 09101_ The unstable cave ceiling collapses. 09101_ Slug penetrates Earth. 09102_ Slug penetrates PQ-U8K(E). 09102_ PQ-U8K(E) destroyed. 09102_ Slug penetrates SE-6EI(E). 09102_ SE-6EI(E) destroyed. 09102_ S-43 Plague suffers critical hit (Destroy). 09103_ Slug penetrates G-73 Enforcer. 09103_ Slug penetrates 73-PEG(E). 09104_ Railslug penetrates G-73 Enforcer. 09104_ Railslug penetrates M-36 Artificer. 09104_ Destroyed Wheel. 09104_ M-36 Artificer destroyed. 09105_ Slug penetrates S-43 Plague. 09106_ Slug penetrates G-73 Enforcer. 09106_ Enh. Biometal Leg destroyed. 09107_ Slug penetrates 73-PEG(E). 09107_ Penetrated by Slug. Map ----- +----------------------------------------------------+ | ########## [!# #" # " """S""" ##? | | ####### " !%! " " " """ """ ##? | | #####"" """"=" " """ """" + + ##? | | #### " """ #### """" """" " # """"""" ##? | | " ## S """ #### """" """" # # """"""" ### | | " ## " """" ### """" """" # " """"""" ### | | " """" ### # " " | | ##" "" " ##########"#;## ; # | | # ##########" #;%! !;######### | | ## ## # ###########" ;;!!!=!######### | | ######### %% [%#??????## | | ! ###### # ### % %;#???????#" | | !%= # ## ### % %#???????#" | | = # # ! =[ % % ###??##### | | % %% # ### ]= % % #### ### | | = *%=%!! * # # ]% = ## #"" | | *|%=E%[*! # #### % % | | =!**s!!= #### [ % # # # | | ![%!C=!! ### #%=% # ##### # # | | !%!!!![!*Eh=! # #* # | | %![%[![%=!s % % # % | | !*%!#!!=%%g% ! %!% | | /% !!*!=*=! ![%*! % % % | | ! !%[ %![!!![ E n %% | | =%=% %*!%%!E=E # | | !%=*=!== %= %=%!=@ # % # | | ! *[!%%!! % &%*/!=!!A! # | | # o !#[![* * ! ![[ ### ## | | # !!* ## ## | | # / % # # # # | | # ## # = =! n # # # ### | | #### # ## # *%[ % # # # # ## ### | | ???## # # # " = " ## ## # # ## | | ???# ### ## ""%=% !%% " " # ## ###?### | | ???##??#### ## [%& ![ "" # ######????## | | ????###### ## # *!=!%= % " " ###?????????## | | ????####### # #%## *[% % ############## | | ????##???? =#= ! ";;#;################# | | ????##???? ## ;%; ;%; #####? ##"# | | ????##??? " ## ;&; *[; ??##?" " " #### | | ????##?? ## # #="%;; ####?" " " ##?? | | ????##?? ? "" #### #" ;";####?" " " ##?? | | ????##????"" "" #### #" % ????? ##?? | | ????##???""" #### "#= %%%? ###?" ##?? | | ????##????"" "" #### #"%%; ?###?" ##?? | | ????##???? ?#### [ % %% ?###?" "T"" ##?? | | ######????? ? ?#### ?? #"" ###? """" #### | | ########?####?########### ?? #*! ####+########## | | #??????????????##########+##+##= | | #??????#???????####??????? ?# | +----------------------------------------------------+ Best States ------------- Heat Dissipation 75 Energy Generation 55 Energy Capacity 410 Matter Stores 1050 Matter Capacity 1050 Sight Range 23 Robot Scan Range 18 Terrain Scan Density 85 ECM Strength 1 Jamming Range 14 Armor Coverage 700 Resistance: TH 10 Core Shielding 90 Propulsion Shielding 66 Projectile Deflection 15 Melee Speed Boost 50 Phase Shifting 15 Evasion (%) 79 Targeting Accuracy 30 Melee Accuracy 16 Target Analysis 8 Core Analysis 12 Armor Integrity Analysis 50 Kinecelleration 66 Offensive Hacking 34 Defensive Hacking 10 Item Schematics ----------------- Mic. Nuclear Core | -5/Factory | Scanalyzed Hacking Suite | -5/Factory | Scanalyzed Mass Driver | -4/Factory | Extracted Adv. Weight Redist. System | -4/Factory | Extracted Assault Drone Bay | -4/Zhirov | Free Exp. Heat Sink | -4/Zhirov | Free Exp. Optical Array | -4/Zhirov | Free Imp. Arc Thrower | -4/Zhirov | Free Imp. Q-thruster | -2/Protoforge | Archive Enh. Biometal Leg | -2/Protoforge | Archive Robot Schematics ------------------ K-01 Serf | -2/Protoforge | Archive A-27 Freighter | -2/Protoforge | Archive Fabricated ------------ Micro-nuke Launcher | x1 | -6/Factory | Preloaded Impulse Thruster Array | x1 | -6/Factory | Preloaded Repaired ---------- Lrn. Sensor Array | 14% | -6/Factory | Broken Studied --------- Lgt. Nuclear Core | -6/Factory | Hacked Mic. Nuclear Core | -6/Factory | Hacked Nuclear Pulse Array | -5/Factory | Hacked Spear | -5/Factory | Hacked Impulse Thruster Array | -4/Factory | Hacked Field Propulsion Array | -2/Quarantine | Hacked Mic. Antimatter Reactor | -2/Quarantine | Hacked Alien Tech Used ----------------- Integrated Reactor Transdimensional Reconstructor Phase Redirector Sigix Broadsword Achievements -------------- Anti-science Crusade Wiki Contributor Challenges ------------ None Game ------ Seed DirtySlugBroadsword Manual? 0 Play Time 04:41:56 Cumulative 330.1 hours Start 2026.07.04 @ 02:43:04 End 2026.07.04 @ 19:00:53 Sessions 13 Manual Loads 0 Difficulty Rogue Special Mode None Game No. 166 Rogue 166 Adventurer 0 Explorer 0 Win Type - Total 7 Types 4/0/1/1/0/0/0/1/0/0 Lore% 69 Gallery% 71 Achievement% 62 Wizard Run 0 Options --------- Layout 1 ASCII 0 Keyboard 0 Movement Mouse Keybinds 0 Fullscreen 1 Font 18/SmallcapsGlow Map View 54x44 Zoom Use 0% Tactical HUD 1 Map Filters NONE Filters NONE Steam 0 RUN: de3e02f5-da97-466a-a8be-50453e2df5c5